lending/lending_fUSD_20240507
["ID","MTS","AMOUNT","RATE_DAILY","PERIOD"]
[326590481,1715119877906,-3689.41,0.00022739,2]
[326590482,1715119877916,-569.47,0.00022739,2]
[326590483,1715119877927,-622.05,0.00022739,2]
[326590484,1715119877939,-890.12,0.00022739,2]
[326590485,1715119877948,-850.11,0.00022739,2]
[326590486,1715119877958,-500.0,0.00022739,2]
[326590487,1715119877967,-828.94,0.00022739,2]
[326590488,1715119877977,-932.93,0.00022739,2]
[326590489,1715119877986,-500.0,0.00022739,2]
[326590490,1715119877995,-505.16,0.00022739,2]
[326590491,1715119878005,-500.0,0.00022739,2]
[326590492,1715119878014,-217.08269859,0.00022739,2]
[326590493,1715119878024,-500.0,0.00022739,2]
[326590494,1715119878039,-831.91,0.00022739,2]
[326590495,1715119878048,-2890.11,0.00022739,2]
[326590496,1715119878058,-500.0,0.00022739,2]
[326590497,1715119878068,-789.32,0.00022739,2]
[326590498,1715119878078,-500.0,0.00022739,2]
[326590499,1715119878088,-1838.64,0.00022739,2]
[326590500,1715119878097,-500.0,0.00022739,2]
[326590501,1715119878109,-500.0,0.00022739,2]
[326590502,1715119878119,-500.0,0.00022739,2]
[326590503,1715119878128,-500.0,0.00022739,2]
[326590504,1715119878137,-251.6798129,0.00022739,2]
[326590505,1715119878147,-1016.56,0.00022739,2]
[326590506,1715119878157,-500.0,0.00022739,2]
[326590507,1715119878166,-875.3,0.00022739,2]
[326590508,1715119878175,-648.96,0.00022739,2]
[326590509,1715119878188,-1782.61,0.00022739,2]
[326590510,1715119878198,-1028.09,0.00022739,2]
[326590511,1715119878207,-1195.08,0.00022739,2]
[326590512,1715119878217,-1256.37,0.00022739,2]
[326590513,1715119878226,-5342.88,0.00022739,2]
[326590514,1715119878236,-3203.8,0.00022739,2]
[326590515,1715119878245,-815.42,0.00022739,2]
[326590516,1715119878255,-500.0,0.00022739,2]
[326590517,1715119878265,-500.0,0.00022739,2]
[326590518,1715119878275,-152.53310631,0.00022739,2]
[326590519,1715119878284,-500.0,0.00022739,2]
[326590520,1715119878294,-1949.26,0.00022739,2]
[326590521,1715119878303,-157.050807,0.00022748,2]
[326590522,1715119878313,-912.31,0.00022779,2]
[326590523,1715119878322,-1310.0,0.000228,2]
[326590524,1715119878331,-200.0,0.00022814,2]
[326590525,1715119878341,-200.0,0.00022814,2]
[326590526,1715119878350,-1000.0,0.00022814,2]
[326590527,1715119878359,-409.447311,0.00022814,2]
[326590528,1715119878369,-500.0,0.00022814,2]
[326590529,1715119878378,-500.0,0.00022814,2]
[326590530,1715119878387,-200.0,0.00022814,2]
[326590531,1715119878396,-200.0,0.00022814,2]
[326590532,1715119878405,-710.0,0.00022893,2]
[326590533,1715119878415,-166.99467275,0.000229,2]
[326590534,1715119878425,-151.35100351,0.00022923,2]
[326590535,1715119878436,-299.6103528,0.0002293,2]
[326590536,1715119878445,-299.6103528,0.0002293,2]
[326590537,1715119878455,-299.6103528,0.0002293,2]
[326590538,1715119878464,-299.6103528,0.0002293,2]
[326590539,1715119878474,-299.6103528,0.0002293,2]
[326590540,1715119878483,-299.6103528,0.0002293,2]
[326590541,1715119878493,-299.6103528,0.0002293,2]
[326590542,1715119878502,-299.6103528,0.0002293,2]
[326590543,1715119878511,-150.0,0.00022931,4]
[326590544,1715119878521,-150.0,0.00022931,4]
[326590545,1715119878530,-150.0,0.00022931,4]
[326590546,1715119878539,-150.0,0.00022931,4]
[326590547,1715119878548,-150.0,0.00022931,4]
[326590548,1715119878558,-5142.59755167,0.00022931,7]
[326590549,1715119878567,-157.050807,0.00022948,2]
[326590550,1715119878576,-1090.0,0.00022968,15]
[326590551,1715119878586,-576.0,0.0002297,15]
[326590552,1715119878596,-1090.0,0.00022978,15]
[326590553,1715119878605,-263.0,0.00022978,15]
[326590554,1715119878614,-576.0,0.0002298,15]
[326590555,1715119878623,-200.37626155,0.0002298,7]
[326590556,1715119878632,-1090.0,0.00022988,15]
[326590557,1715119878642,-150.5,0.00022988,15]
[326590558,1715119878651,-576.0,0.0002299,15]
[326590559,1715119878660,-1721.3826226,0.00022993,2]
[326590560,1715119878670,-6834.7065509,0.00022993,2]
[326590561,1715119878681,-31725.4190533,0.00022993,2]
[326590562,1715119878690,-3109.7444164,0.00022997,2]
[326590563,1715119878699,-1707.899382,0.00022997,2]
[326590564,1715119878708,-519.03525334,0.00022998,2]
[326590565,1715119878718,-207.66695698,0.00022998,2]
[326590566,1715119878727,-5858.31717383,0.00022998,2]
[326590567,1715119878738,-299.6103528,0.00022999,2]
[326590568,1715119878748,-299.6103528,0.00022999,2]
[326590569,1715119878757,-299.6103528,0.00022999,2]
[326590570,1715119878767,-457748.61839434,0.00023,4]
[326590571,1715119878780,-778038.52541113,0.00023,4]
[326590572,1715119878791,-1398.84579396,0.00023,4]
[326590573,1715119878803,-629.23,0.00023,4]
[326590574,1715119878814,-4223.88782054,0.00023,4]
[326590575,1715119878828,-932.75688725,0.00023,4]
[326590576,1715119878841,-2068.35907027,0.00023,4]
[326590577,1715119878938,-1996.63077031,0.00012999,2]
[326590578,1715119878947,-4485.65090969,0.00015851,2]
[326590579,1715119878959,-585.28715928,0.00015851,2]
[326590580,1715119879008,-1108.87164166,0.00015851,2]
[326590581,1715119879020,-449.16128282,0.00015851,2]
[326590582,1715119879036,-1359.1958437,0.000179,2]
[326590583,1715119879048,-934.31466974,0.000179,2]
[326590584,1715119879057,-500.0,0.00019178,2]
[326590585,1715119879068,-500.0,0.00019178,2]
[326590586,1715119879077,-500.0,0.00019726,2]
[326590587,1715119879088,-500.0,0.0002,2]
[326590588,1715119879097,-500.0,0.00020821,2]
[326590589,1715119879108,-500.0,0.00021095,2]
[326590590,1715119879118,-192.98754649,0.00021369,2]
[326590591,1715119879127,-500.0,0.00022191,2]
[326590592,1715119879138,-91.06528345,0.00022465,2]
[326590593,1715119879151,-408.93471655,0.00022465,2]
[326590594,1715119879160,-4823.1063594,0.00023,4]
[326590595,1715119879172,-383.87296915,0.00023,4]
[326590596,1715119879184,-1018.3,0.00023,4]
[326590597,1715119879195,-674.79429573,0.00023,4]
[326590598,1715119879207,-1458.83968283,0.00023,4]
[326590599,1715119879217,-358.2385076,0.00023,4]
[326590600,1715119879229,-782.98660138,0.00023,4]
[326590601,1715119879239,-13103.56177043,0.00023,4]
[326590602,1715119879251,-1594.95663513,0.00023,4]
[326590603,1715119879262,-617.96318409,0.00023,4]
[326590604,1715119879273,-677.99999947,0.00023,4]
[326590605,1715119879284,-393.85,0.00023,4]
[326590606,1715119879296,-660.02,0.00023,4]
[326590607,1715119879307,-489.02686996,0.00023,4]
[326590608,1715119879319,-3607.00388648,0.00023,4]
[326590609,1715119879330,-1954.38991851,0.00023,4]
[326590610,1715119879341,-994.43474316,0.00023,4]
[326590611,1715119879353,-495.411,0.00023,4]
[326590612,1715119879408,-500.0,0.00019452,2]
[326590613,1715119879418,-500.0,0.00019726,2]
[326590614,1715119879428,-227.69,0.0002,2]
[326590615,1715119879441,-272.31,0.0002,2]
[326590616,1715119879452,-22.94514135,0.00020273,2]
[326590617,1715119879464,-387.53754655,0.00020273,2]
[326590618,1715119879475,-89.5173121,0.00020273,2]
[326590619,1715119879485,-500.0,0.00020547,2]
[326590620,1715119879495,-205.37452712,0.00022739,2]
[326590621,1715119879508,-294.62547288,0.00022739,2]
[326590622,1715119879517,-4788.38967729,0.00023,4]
[326590623,1715119879529,-472.97060769,0.00023,4]
[326590624,1715119879540,-8197.92635481,0.00023,4]
[326590625,1715119879551,-1178.94674379,0.00023,4]
[326590626,1715119879563,-14582.43468,0.00023,4]
[326590627,1715119879575,-35885.226265,0.00023,4]
[326590628,1715119879586,-20356.475419,0.00023,4]
[326590629,1715119879597,-3972.0,0.00023,4]
[326590639,1715121032385,-782.5278252,0.00011999,2]
[326590641,1715121032395,-486.23600383,0.00012,2]
[326590642,1715121032409,-3283.22421825,0.00012,2]
[326590643,1715121032422,-363.81807592,0.00013555,2]
[326590644,1715121032431,-534.95638881,0.00013556,2]
[326590645,1715121032441,-252.02181648,0.00013556,2]
[326590647,1715121032451,-155.0,0.00013556,2]
[326590649,1715121032462,-150.0,0.00013556,2]
[326590650,1715121032473,-685.23241035,0.00013557,2]
[326590651,1715121032482,-3024.58720392,0.00013557,2]
[326590652,1715121032493,-157.50965258,0.00013557,2]
[326590653,1715121032503,-3004.89985123,0.00013557,2]
[326590654,1715121032513,-167.63437116,0.00013557,2]
[326590655,1715121032523,-207.10980669,0.00013558,2]
[326590656,1715121032532,-7695.82280347,0.00013558,2]
[326590657,1715121032544,-347.96815075,0.00013558,2]
[326590658,1715121033130,-700.08093092,0.00013558,2]
[326590660,1715121033141,-4044.72301169,0.00013558,2]
[326590663,1715121033154,-1700.0,0.00013558,2]
[326590665,1715121033165,-4124.1755555,0.00013558,2]
[326590667,1715121033174,-2325.27290029,0.00013559,2]
[326590669,1715121033183,-533.77884656,0.00013565,2]
[326590671,1715121033192,-872.70795906,0.00013587,2]
[326590673,1715121033201,-1000.0,0.00013698,5]
[326590675,1715121033210,-279.05,0.00016478,2]
[326590677,1715121033219,-192.71,0.00016478,2]
[326590679,1715121033229,-178.29,0.00016478,2]
[326590681,1715121033238,-299.99,0.00016561,4]
[326590683,1715121033248,-499.99,0.00016561,2]
[326590685,1715121033257,-200.0,0.00016884,2]
[326590687,1715121033267,-250.0,0.00017039,2]
[326590689,1715121033276,-150.0,0.00017053,2]
[326590691,1715121033285,-169.73,0.00017204,2]
[326590693,1715121033295,-180.61,0.0001726,2]
[326590695,1715121033304,-3652.70755559,0.00017327,2]
[326590697,1715121033317,-2976.26343786,0.00017327,2]
[326590699,1715121033326,-3291.23656215,0.00017552,2]
[326590700,1715121033337,-500.77266238,0.00017552,2]
[326590727,1715121038689,-204.31657364,0.00011999,2]
[326590731,1715121038699,-207.10980669,0.00011999,2]
[326590734,1715121038709,-2704.64601967,0.00017552,2]
[326590760,1715121038940,-624.519565,0.00017552,2]
[326590762,1715121038952,-390.21121279,0.00017552,2]
[326590764,1715121038964,-2060.58381156,0.00017552,2]
[326590767,1715121038976,-10510.64443999,0.00017552,2]
[326590769,1715121038988,-3195.21607603,0.00017552,2]
[326590771,1715121039000,-622.16965043,0.00017552,2]
[326590773,1715121039009,-150.0,0.00017578,2]
[326590775,1715121039020,-154.66083298,0.00017601,2]
[326590777,1715121039030,-206.83,0.00017739,2]
[326590779,1715121039040,-192.21,0.00017882,2]
[326590781,1715121039051,-750.0,0.00018,3]
[326590783,1715121039062,-750.0,0.00018,3]
[326590785,1715121039073,-301.45,0.00018411,2]
[326590787,1715121039083,-567.94,0.00018411,2]
[326590789,1715121039096,-155.6980846,0.00018527,2]
[326590791,1715121039106,-256.24807285,0.00018792,2]
[326590793,1715121039117,-6628.97099345,0.00018803,2]
[326590795,1715121039127,-210.317,0.00018977,2]
[326590797,1715121039137,-2905.8173,0.00018977,2]
[326590799,1715121039147,-1108.45544756,0.00018977,2]
[326590801,1715121039157,-3466.90159126,0.00019075,2]
[326590803,1715121039167,-1000.0,0.00019076,2]
[326590805,1715121039178,-7266.82191991,0.00019076,2]
[326590807,1715121039188,-7513.6775,0.00019077,2]
[326590809,1715121039199,-4875.4922,0.00019077,2]
[326590811,1715121039208,-99929.9553,0.00019077,2]
[326590813,1715121039219,-7500.0,0.00019077,2]
[326590815,1715121039228,-2500.0,0.00019077,2]
[326590817,1715121039238,-1004.96639116,0.00019078,2]
[326590819,1715121039249,-500.0,0.00019078,2]
[326590821,1715121039259,-2070.77455415,0.00019159,2]
[326590823,1715121039269,-642.127433,0.00019176,2]
[326590825,1715121039279,-1139.20735303,0.00019176,2]
[326590827,1715121039289,-1996.81788928,0.00019176,2]
[326590829,1715121039298,-360.01550888,0.00019176,2]
[326590831,1715121039308,-5551.89418728,0.00019176,2]
[326590833,1715121039318,-155.0,0.00019176,2]
[326590835,1715121039328,-155.08590433,0.00019176,2]
[326590837,1715121039338,-3083.85801135,0.00019176,2]
[326590840,1715121039348,-1325.97003301,0.00019176,2]
[326590842,1715121039358,-155.0,0.00019176,2]
[326590843,1715121039367,-554.84517864,0.00019176,2]
[326590846,1715121039378,-162.11231848,0.00019176,2]
[326590848,1715121039388,-1224.78398941,0.00019176,2]
[326590850,1715121039400,-178.8452573,0.00019176,2]
[326590852,1715121039411,-324.0890106,0.00019176,2]
[326590854,1715121039425,-155.0,0.00019176,2]
[326590856,1715121039436,-378.02727521,0.00019176,2]
[326590858,1715121039446,-155.0,0.00019177,2]
[326590860,1715121039457,-711.29680652,0.00019177,2]
[326590862,1715121039468,-3697.29672041,0.00019177,2]
[326590864,1715121039478,-83582.0472323,0.00019177,2]
[326590866,1715121039488,-500.0,0.00019178,2]
[326590868,1715121039500,-646.69,0.00019178,2]
[326590870,1715121039510,-500.0,0.00019178,2]
[326590872,1715121039519,-500.0,0.00019178,2]
[326590874,1715121039530,-500.0,0.00019178,2]
[326590876,1715121039540,-500.0,0.00019178,2]
[326590878,1715121039550,-559.99,0.00019178,2]
[326590880,1715121039560,-500.0,0.00019178,2]
[326590882,1715121039570,-500.0,0.00019178,2]
[326590884,1715121039580,-500.0,0.00019178,2]
[326590886,1715121039591,-500.0,0.00019178,2]
[326590888,1715121039601,-500.0,0.00019178,2]
[326590890,1715121039611,-579.36,0.00019178,2]
[326590892,1715121039621,-500.0,0.00019178,2]
[326590894,1715121039632,-500.0,0.00019178,2]
[326590896,1715121039642,-500.0,0.00019178,2]
[326590898,1715121039652,-500.0,0.00019178,2]
[326590900,1715121039662,-552.01808102,0.00019178,2]
[326590902,1715121039672,-210.81,0.00019178,2]
[326590904,1715121039682,-500.0,0.00019178,2]
[326590906,1715121039692,-500.0,0.00019178,2]
[326590908,1715121039702,-500.0,0.00019178,2]
[326590910,1715121039711,-602.35,0.00019178,2]
[326590912,1715121039721,-500.0,0.00019178,2]
[326590914,1715121039731,-500.0,0.00019178,2]
[326590916,1715121039740,-500.0,0.00019178,2]
[326590918,1715121039750,-599.96,0.00019178,2]
[326590920,1715121039759,-500.0,0.00019178,2]
[326590922,1715121039768,-500.0,0.00019178,2]
[326590924,1715121039778,-500.0,0.00019178,2]
[326590926,1715121039787,-500.0,0.00019178,2]
[326590928,1715121039797,-500.0,0.00019178,2]
[326590930,1715121039806,-500.0,0.00019178,2]
[326590932,1715121039815,-500.0,0.00019178,2]
[326590934,1715121039825,-500.0,0.00019178,2]
[326590936,1715121039835,-500.0,0.00019178,2]
[326590938,1715121039845,-500.0,0.00019178,2]
[326590940,1715121039855,-500.0,0.00019178,2]
[326590942,1715121039864,-500.0,0.00019178,2]
[326590944,1715121039874,-500.0,0.00019178,2]
[326590946,1715121039883,-500.0,0.00019178,2]
[326590948,1715121039893,-500.0,0.00019178,2]
[326590950,1715121039902,-622.52,0.00019178,2]
[326590952,1715121039911,-500.0,0.00019178,2]
[326590954,1715121039922,-500.0,0.00019178,2]
[326590956,1715121039932,-500.0,0.00019178,2]
[326590958,1715121039942,-500.7164211,0.00019178,2]
[326590960,1715121039952,-634.86,0.00019178,2]
[326590962,1715121039962,-500.0,0.00019178,2]
[326590964,1715121039972,-500.0,0.00019178,2]
[326590966,1715121039982,-500.0,0.00019178,2]
[326590968,1715121039992,-500.0,0.00019178,2]
[326590970,1715121040001,-500.0,0.00019178,2]
[326590972,1715121040011,-500.0,0.00019178,2]
[326590974,1715121040021,-604.76,0.00019178,2]
[326590976,1715121040032,-500.0,0.00019178,2]
[326590978,1715121040045,-556.85647417,0.00019178,2]
[326590980,1715121040055,-500.0,0.00019178,2]
[326590981,1715121040065,-506.19963109,0.00019178,2]
[326590982,1715121040075,-500.0,0.00019178,2]
[326590983,1715121040086,-485.98434544,0.00019178,2]
[326590984,1715121040096,-310.09884799,0.00019178,2]
[326590985,1715121040105,-520.06709658,0.00019178,2]
[326590986,1715121040115,-500.0,0.00019178,2]
[326590987,1715121040124,-500.0,0.00019178,2]
[326590988,1715121040134,-500.0,0.00019178,2]
[326590989,1715121040144,-493.76,0.00019178,2]
[326590990,1715121040153,-500.0,0.00019178,2]
[326590991,1715121040163,-500.0,0.00019178,2]
[326590992,1715121040173,-500.0,0.00019178,2]
[326590993,1715121040182,-500.0,0.00019178,2]
[326590994,1715121040192,-500.0,0.00019178,2]
[326590996,1715121040202,-500.0,0.00019178,2]
[326590998,1715121040213,-500.0,0.00019178,2]
[326591000,1715121040223,-500.0,0.00019178,2]
[326591002,1715121040233,-500.0,0.00019178,2]
[326591004,1715121040243,-500.0,0.00019178,2]
[326591006,1715121040252,-500.0,0.00019178,2]
[326591008,1715121040262,-500.0,0.00019178,2]
[326591010,1715121040271,-515.67,0.00019178,2]
[326591012,1715121040281,-509.16,0.00019178,2]
[326591014,1715121040290,-500.0,0.00019178,2]
[326591016,1715121040300,-500.0,0.00019178,2]
[326591018,1715121040309,-500.0,0.00019178,2]
[326591020,1715121040318,-500.0,0.00019178,2]
[326591022,1715121040327,-500.0,0.00019178,2]
[326591024,1715121040337,-500.0,0.00019178,2]
[326591026,1715121040346,-500.0,0.00019178,2]
[326591028,1715121040355,-500.0,0.00019178,2]
[326591030,1715121040364,-500.0,0.00019178,2]
[326591032,1715121040374,-500.0,0.00019178,2]
[326591034,1715121040383,-500.0,0.00019178,2]
[326591036,1715121040392,-500.0,0.00019178,2]
[326591038,1715121040402,-500.0,0.00019178,2]
[326591040,1715121040413,-500.0,0.00019178,2]
[326591042,1715121040425,-500.0,0.00019178,2]
[326591044,1715121040435,-530.39,0.00019178,2]
[326591046,1715121040444,-599.9,0.00019178,2]
[326591048,1715121040455,-500.0,0.00019178,2]
[326591050,1715121040465,-500.0,0.00019178,2]
[326591052,1715121040474,-500.0,0.00019178,2]
[326591054,1715121040484,-500.0,0.00019178,2]
[326591056,1715121040496,-500.0,0.00019178,2]
[326591060,1715121040506,-500.0,0.00019178,2]
[326591063,1715121040516,-500.0,0.00019178,2]
[326591065,1715121040525,-500.0,0.00019178,2]
[326591069,1715121040535,-500.0,0.00019178,2]
[326591073,1715121040545,-500.0,0.00019178,2]
[326591076,1715121040555,-500.0,0.00019178,2]
[326591079,1715121040564,-500.0,0.00019178,2]
[326591082,1715121040574,-500.0,0.00019178,2]
[326591085,1715121040583,-613.26872212,0.00019178,2]
[326591088,1715121040593,-500.0,0.00019178,2]
[326591090,1715121040612,-500.0,0.00019178,2]
[326591093,1715121040622,-500.0,0.00019178,2]
[326591095,1715121040631,-500.0,0.00019178,2]
[326591099,1715121040641,-500.0,0.00019178,2]
[326591101,1715121040650,-500.0,0.00019178,2]
[326591104,1715121040660,-500.0,0.00019178,2]
[326591108,1715121040671,-500.0,0.00019178,2]
[326591111,1715121040681,-500.0,0.00019178,2]
[326591114,1715121040691,-500.0,0.00019178,2]
[326591117,1715121040701,-500.0,0.00019178,2]
[326591120,1715121040711,-500.0,0.00019178,2]
[326591122,1715121040720,-500.0,0.00019178,2]
[326591125,1715121040731,-500.0,0.00019178,2]
[326591128,1715121040741,-500.0,0.00019178,2]
[326591131,1715121040752,-500.0,0.00019178,2]
[326591134,1715121040762,-500.0,0.00019178,2]
[326591136,1715121040771,-666.66,0.00019178,2]
[326591138,1715121040781,-500.0,0.00019178,2]
[326591140,1715121040792,-500.0,0.00019178,2]
[326591142,1715121040801,-500.0,0.00019178,2]
[326591144,1715121040811,-500.0,0.00019178,2]
[326591146,1715121040820,-500.0,0.00019178,2]
[326591148,1715121040830,-500.0,0.00019178,2]
[326591150,1715121040839,-500.0,0.00019178,2]
[326591152,1715121040849,-500.0,0.00019178,2]
[326591154,1715121040858,-500.0,0.00019178,2]
[326591156,1715121040868,-500.0,0.00019178,2]
[326591158,1715121040878,-500.0,0.00019178,2]
[326591160,1715121040887,-500.0,0.00019178,2]
[326591162,1715121040897,-500.0,0.00019178,2]
[326591164,1715121040906,-500.0,0.00019178,2]
[326591166,1715121040915,-519.72,0.00019178,2]
[326591168,1715121040927,-500.0,0.00019178,2]
[326591170,1715121040936,-500.0,0.00019178,2]
[326591172,1715121040946,-513.88,0.00019178,2]
[326591174,1715121040956,-500.0,0.00019178,2]
[326591176,1715121040966,-500.0,0.00019178,2]
[326591178,1715121040976,-377.05769271,0.00019178,2]
[326591180,1715121040985,-150.0,0.00019178,2]
[326591182,1715121040995,-500.0,0.00019178,2]
[326591184,1715121041005,-500.0,0.00019178,2]
[326591186,1715121041014,-500.0,0.00019178,2]
[326591188,1715121041024,-500.0,0.00019178,2]
[326591190,1715121041034,-500.0,0.00019178,2]
[326591192,1715121041043,-500.0,0.00019178,2]
[326591194,1715121041053,-500.0,0.00019178,2]
[326591196,1715121041063,-500.0,0.00019178,2]
[326591198,1715121041072,-500.0,0.00019178,2]
[326591200,1715121041081,-500.0,0.00019178,2]
[326591202,1715121041094,-500.0,0.00019178,2]
[326591204,1715121041103,-500.0,0.00019178,2]
[326591206,1715121041113,-500.0,0.00019178,2]
[326591208,1715121041122,-500.0,0.00019178,2]
[326591210,1715121041131,-500.0,0.00019178,2]
[326591212,1715121041140,-500.0,0.00019178,2]
[326591214,1715121041150,-500.0,0.00019178,2]
[326591216,1715121041159,-500.0,0.00019178,2]
[326591218,1715121041171,-500.0,0.00019178,2]
[326591220,1715121041180,-500.0,0.00019178,2]
[326591223,1715121041189,-500.0,0.00019178,2]
[326591225,1715121041199,-500.0,0.00019178,2]
[326591227,1715121041208,-500.0,0.00019178,2]
[326591229,1715121041218,-500.0,0.00019178,2]
[326591231,1715121041227,-500.0,0.00019178,2]
[326591233,1715121041236,-500.0,0.00019178,2]
[326591235,1715121041246,-500.0,0.00019178,2]
[326591237,1715121041255,-500.0,0.00019178,2]
[326591239,1715121041264,-500.0,0.00019178,2]
[326591241,1715121041273,-500.0,0.00019178,2]
[326591243,1715121041283,-899.64,0.00019178,2]
[326591244,1715121041292,-500.0,0.00019178,2]
[326591246,1715121041301,-500.0,0.00019178,2]
[326591249,1715121041311,-500.0,0.00019178,2]
[326591250,1715121041320,-1730.35,0.00019178,2]
[326591253,1715121041330,-1244.08,0.00019178,2]
[326591255,1715121041339,-500.0,0.00019178,2]
[326591257,1715121041349,-500.0,0.00019178,2]
[326591259,1715121041359,-500.0,0.00019178,2]
[326591261,1715121041368,-500.0,0.00019178,2]
[326591263,1715121041377,-500.0,0.00019178,2]
[326591265,1715121041387,-500.0,0.00019178,2]
[326591267,1715121041396,-500.0,0.00019178,2]
[326591269,1715121041405,-500.0,0.00019178,2]
[326591271,1715121041418,-500.0,0.00019178,2]
[326591273,1715121041428,-500.0,0.00019178,2]
[326591275,1715121041437,-500.0,0.00019178,2]
[326591277,1715121041445,-799.88,0.00019178,2]
[326591279,1715121041455,-500.0,0.00019178,2]
[326591281,1715121041464,-568.92,0.00019178,2]
[326591283,1715121041474,-500.0,0.00019178,2]
[326591285,1715121041483,-500.0,0.00019178,2]
[326591287,1715121041495,-672.9,0.00019178,2]
[326591289,1715121041506,-500.0,0.00019178,2]
[326591291,1715121041515,-500.0,0.00019178,2]
[326591293,1715121041525,-500.0,0.00019178,2]
[326591295,1715121041534,-500.0,0.00019178,2]
[326591297,1715121041543,-2011.2,0.00019178,2]
[326591299,1715121041552,-500.0,0.00019178,2]
[326591301,1715121041561,-500.0,0.00019178,2]
[326591303,1715121041571,-500.0,0.00019178,2]
[326591305,1715121041581,-500.0,0.00019178,2]
[326591307,1715121041590,-500.0,0.00019178,2]
[326591309,1715121041600,-500.0,0.00019178,2]
[326591311,1715121041609,-500.0,0.00019178,2]
[326591313,1715121041619,-500.0,0.00019178,2]
[326591315,1715121041628,-500.0,0.00019178,2]
[326591317,1715121041638,-637.08,0.00019178,2]
[326591319,1715121041647,-500.0,0.00019178,2]
[326591321,1715121041656,-2660.28,0.00019178,2]
[326591323,1715121041665,-500.0,0.00019178,2]
[326591325,1715121041677,-500.0,0.00019178,2]
[326591327,1715121041686,-799.11,0.00019178,2]
[326591329,1715121041696,-500.0,0.00019178,2]
[326591331,1715121041705,-500.0,0.00019178,2]
[326591333,1715121041715,-500.0,0.00019178,2]
[326591335,1715121041724,-500.0,0.00019178,2]
[326591337,1715121041734,-500.0,0.00019178,2]
[326591339,1715121041743,-500.0,0.00019178,2]
[326591341,1715121041752,-500.0,0.00019178,2]
[326591343,1715121041762,-500.0,0.00019178,2]
[326591344,1715121041771,-500.0,0.00019178,2]
[326591346,1715121041780,-500.0,0.00019178,2]
[326591349,1715121041789,-500.0,0.00019178,2]
[326591351,1715121041799,-500.0,0.00019178,2]
[326591352,1715121041809,-4975.18,0.00019178,2]
[326591355,1715121041818,-500.0,0.00019178,2]
[326591356,1715121041828,-500.0,0.00019178,2]
[326591358,1715121041837,-243.61,0.00019178,2]
[326591360,1715121041848,-500.0,0.00019178,2]
[326591363,1715121041858,-500.0,0.00019178,2]
[326591365,1715121041868,-500.0,0.00019178,2]
[326591367,1715121041878,-500.0,0.00019178,2]
[326591369,1715121041887,-500.0,0.00019178,2]
[326591371,1715121041897,-731.55,0.00019178,2]
[326591373,1715121041906,-799.52,0.00019178,2]
[326591375,1715121041915,-500.0,0.00019178,2]
[326591377,1715121041927,-500.0,0.00019178,2]
[326591379,1715121041936,-500.0,0.00019178,2]
[326591381,1715121041946,-500.0,0.00019178,2]
[326591383,1715121041955,-500.0,0.00019178,2]
[326591385,1715121041965,-500.0,0.00019178,2]
[326591387,1715121041974,-500.0,0.00019178,2]
[326591389,1715121041984,-500.0,0.00019178,2]
[326591391,1715121041993,-500.0,0.00019178,2]
[326591393,1715121042002,-500.0,0.00019178,2]